[Event "30th NATO Chess-ch 2019"]
[Site "Berlin"]
[Date "2019.09.19"]
[Round "6.5"]
[White "Sypien, Mateusz"]
[Black "Watters, Chase"]
[Result "1-0"]
[ECO "A07"]
[WhiteElo "2243"]
[BlackElo "2179"]
[Annotator "ChessBase"]
[PlyCount "67"]
[EventDate "2019.09.16"]
[EventType "swiss"]
[EventCountry "GER"]
[SourceTitle "playchess.com"]
[Source "ChessBase"]
[SourceQuality "1"]
[TimeControl "40/7200:1800"]

1. Nf3 {[%emt 1:59:57]} d5 {[%emt 1:59:47]} 2. g3 {[%emt 1:59:50]} Nf6 {[%emt 1:56:54]} 3. Bg2 {[%emt 1:59:43]} Bf5 {[%emt 1:55:53]} 4. d3 {[%emt 1:59:19]} h6 {[%emt 1:55:33]} 5. O-O {[%emt 1:55:33]} e6 {[%emt 1:55:16]} 6. Nfd2 {[%emt 1:55:31]} c6 {[%emt 1:55:31]} 7. e4 {[%emt 1:52:48]} Bg4 {[%emt 1:52:48]} 8. Qe1 {[%emt 1:49:12]} Be7 {[%emt 1:49:12]} 9. h3 {[%emt 1:47:01]} Bh5 {[%emt 1:52:22]} 10. f4 {[%emt 1:46:31]} Qb6+ {[%emt 1:52:01]} 11. Kh1 {[%emt 1:45:24]} Na6 {[%emt 1:40:30]} 12. f5 {[%emt 1:40:40]} Nb4 {[%emt 1:40:40]} 13. Na3 {[%emt 1:40:00]} O-O-O {[%emt 1:39:27]} 14. e5 {[%emt 1:36:31]} exf5 {[%emt 1:32:07]} 15. exf6 {[%emt 1:34:46]} Bxf6 {[%emt 1:34:46]} 16. Qf2 {[%emt 1:29:20]} Qxf2 {[%emt 1:22:50]} 17. Rxf2 {[%emt 1:29:13]} Bg6 {[%emt 1:22:34]} 18. Nf3 {[%emt 1:26:07]} c5 {[%emt 1:17:44]} 19. Bf1 {[%emt 1:22:54]} Bh7 {[%emt 1:22:54]} 20. c3 {[%emt 1:17:23]} Nc6 {[%emt 1:16:00]} 21. Nc2 {[%emt 1:17:13]} g5 {[%emt 1:17:13]} 22. d4 {[%emt 1:13:46]} b6 {[%emt 1:13:41]} 23. Be3 {[%emt 1:10:43]} Be7 {[%emt 1:10:43]} 24. Bb5 {[%emt 1:09:19]} Nb8 {[%emt 1:08:12]} 25. dxc5 {[%emt 1:06:12]} bxc5 {[%emt 1:06:12]} 26. Rd1 {[%emt 0:59:15]} Bd6 {[%emt 1:00:48]} 27. Rxd5 {[%emt 0:55:57]} Bxg3 {[%emt 0:55:57]} 28. Rxc5+ {[%emt 0:54:58]} Kb7 {[%emt 0:54:58]} 29. Re2 {[%emt 0:53:51]} a6 {[%emt 0:53:41]} 30. Bc4 {[%emt 0:51:11]} Bd6 {[%emt 0:44:19]} 31. Bd5+ {[%emt 0:49:12]} Kb6 {[%emt 0:43:25]} 32. Rc8+ {[%emt 0:46:00]} Ka5 {[%emt 0:42:43]} 33. b4+ {[%emt 0:45:28]} Ka4 {[%emt 0:41:54]} 34. Bb3+ {[%emt 0:45:18]} 1-0

[Event "30th NATO Chess-ch 2019"]
[Site "Berlin"]
[Date "2019.09.19"]
[Round "6.6"]
[White "Bohn, Ulrich"]
[Black "Delfino, Luigi"]
[Result "0-1"]
[ECO "B07"]
[WhiteElo "2157"]
[BlackElo "2235"]
[Annotator "NA"]
[PlyCount "80"]
[EventDate "2019.09.16"]
[EventType "swiss"]
[EventCountry "GER"]
[SourceTitle "playchess.com"]
[Source "ChessBase"]
[SourceQuality "1"]
[TimeControl "40/7200:1800"]

1. d4 {[%emt 1:59:34]} d6 {[%emt 1:59:34]} 2. e4 {[%emt 1:55:11]} g6 {[%emt 1:55:11]} 3. Nc3 {[%emt 1:58:34]} Nf6 {[%emt 1:54:47]} 4. Bf4 {[%emt 1:52:04]} c6 {[%emt 1:56:06]} 5. Qd2 {[%emt 1:50:45]} b5 {[%emt 1:55:16]} 6. Bd3 {[%emt 1:47:57]} Bg7 {[%emt 1:47:57]} 7. a4 {[%emt 1:52:38]} b4 {[%emt 1:41:26]} 8. Nce2 {[%emt 1:50:47]} a5 {[%emt 1:40:59]} 9. c3 {[%emt 1:37:25]} O-O {[%emt 1:33:20]} 10. h4 {[%emt 1:24:55]} e5 {[%emt 1:26:50]} 11. Bg5 {[%emt 1:06:10]} h5 {[%emt 1:06:10]} 12. dxe5 {[%emt 1:02:18]} dxe5 {[%emt 1:02:49]} 13. cxb4 {[%emt 1:02:49]} axb4 {[%emt 1:02:18]} 14. Nf3 {[%emt 0:50:37]} Qa5 {[%emt 0:58:54]} 15. b3 {[%emt 0:48:03]} Nbd7 {[%emt 0:44:56]} 16. Qc2 {[%emt 0:36:48]} Nc5 {[%emt 0:43:06]} 17. Nd2 {[%emt 0:36:10]} Nxd3+ {[%emt 0:36:10]} 18. Qxd3 {[%emt 0:36:05]} Nd7 {[%emt 0:36:05]} 19. Be7 {[%emt 0:30:43]} Re8 {[%emt 0:22:36]} 20. Nc4 {[%emt 0:22:36]} Qa6 {[%emt 0:30:26]} 21. Bxb4 {[%emt 0:20:58]} Nb6 {[%emt 0:19:04]} 22. Nb2 {[%emt 0:24:30]} Be6 {[%emt 0:19:02]} 23. Qxa6 {[%emt 0:19:01]} Rxa6 {[%emt 0:19:01]} 24. Nc1 {[%emt 0:14:07]} Nd7 {[%emt 0:14:07]} 25. Nbd3 {[%emt 0:13:04]} Rea8 {[%emt 0:12:09]} 26. Kd2 {[%emt 0:09:13]} Bh6+ {[%emt 0:09:17]} 27. Kc3 {[%emt 0:08:17]} f5 {[%emt 0:08:17]} 28. f3 {[%emt 0:09:04]} Be3 {[%emt 0:08:51]} 29. Kc2 {[%emt 0:08:51]} c5 {[%emt 0:06:41]} 30. Bc3 {[%emt 0:06:23]} c4 {[%emt 0:06:09]} 31. bxc4 {[%emt 0:06:09]} Rxa4 {[%emt 0:05:44]} 32. Rxa4 {[%emt 0:06:01]} Rxa4 {[%emt 0:05:43]} 33. Nb2 {[%emt 0:04:48]} Ra1 {[%emt 0:04:48]} 34. Nbd3 {[%emt 0:03:25]} Ra4 {[%emt 0:03:46]} 35. Nb2 {[%emt 0:03:23]} Ra1 {[%emt 0:03:23]} 36. Rd1 {[%emt 0:02:51]} fxe4 {[%emt 0:02:51]} 37. fxe4 {[%emt 0:02:51]} Bg4 {[%emt 0:02:44]} 38. Rf1 {[%emt 0:02:16]} Nc5 {[%emt 0:01:15]} 39. Nd1 {[%emt 0:01:09]} Rxc1+ {[%emt 0:01:06]} 40. Kb2 {[%emt 0:01:07]} Rxd1 0-1

[Event "30th NATO Chess-ch 2019"]
[Site "Berlin"]
[Date "2019.09.19"]
[Round "6.7"]
[White "Andersen, Hans-Christoph"]
[Black "Kedzierski, Slawomir"]
[Result "1-0"]
[ECO "E09"]
[WhiteElo "2201"]
[BlackElo "2163"]
[Annotator "NA"]
[PlyCount "104"]
[EventDate "2019.09.16"]
[EventType "swiss"]
[EventCountry "GER"]
[SourceTitle "playchess.com"]
[Source "ChessBase"]
[SourceQuality "1"]
[TimeControl "40/7200:1800"]

1. d4 {[%emt 1:59:53]} Nf6 {[%emt 1:59:53]} 2. c4 {[%emt 1:59:36]} e6 {[%emt 1:58:31]} 3. g3 {[%emt 1:58:55]} d5 {[%emt 1:57:59]} 4. Nf3 {[%emt 1:57:59]} Be7 {[%emt 1:57:43]} 5. Bg2 {[%emt 1:57:43]} O-O {[%emt 1:58:15]} 6. O-O {[%emt 1:57:22]} c6 {[%emt 1:58:03]} 7. Qc2 {[%emt 1:57:26]} b6 {[%emt 1:54:52]} 8. Nbd2 {[%emt 1:55:47]} Nbd7 {[%emt 1:55:47]} 9. e4 {[%emt 1:53:21]} dxe4 {[%emt 1:54:55]} 10. Nxe4 {[%emt 1:54:41]} Bb7 {[%emt 1:45:08]} 11. Rd1 {[%emt 1:49:29]} Nxe4 {[%emt 1:49:29]} 12. Qxe4 {[%emt 1:49:08]} Qc7 {[%emt 1:49:08]} 13. Bf4 {[%emt 1:38:26]} Bd6 {[%emt 1:34:16]} 14. Bxd6 {[%emt 1:46:07]} Qxd6 {[%emt 1:46:07]} 15. c5 {[%emt 1:33:59]} Qc7 {[%emt 1:30:59]} 16. Rac1 {[%emt 1:11:57]} Rfd8 {[%emt 1:21:21]} 17. Qe2 {[%emt 1:21:21]} Nf6 {[%emt 1:11:47]} 18. Ne5 {[%emt 1:01:01]} Nd5 {[%emt 1:01:01]} 19. h4 {[%emt 0:52:21]} b5 {[%emt 0:52:21]} 20. Be4 {[%emt 1:02:33]} a5 {[%emt 0:45:05]} 21. Bb1 {[%emt 0:43:44]} Ba6 {[%emt 0:54:23]} 22. Qc2 {[%emt 0:41:22]} g6 {[%emt 0:41:22]} 23. h5 {[%emt 0:39:09]} f6 {[%emt 0:39:09]} 24. Nf3 {[%emt 0:43:33]} g5 {[%emt 0:28:27]} 25. Re1 {[%emt 0:41:08]} Re8 {[%emt 0:23:38]} 26. Re4 {[%emt 0:40:24]} Qg7 {[%emt 0:12:46]} 27. Rce1 {[%emt 0:10:33]} Bc8 {[%emt 0:32:47]} 28. Kg2 {[%emt 0:08:38]} a4 {[%emt 0:28:46]} 29. a3 {[%emt 0:08:19]} b4 {[%emt 0:27:37]} 30. axb4 {[%emt 0:07:42]} Nxb4 {[%emt 0:07:42]} 31. Qd2 {[%emt 0:27:07]} Nd5 {[%emt 0:05:52]} 32. Ba2 {[%emt 0:05:23]} Bd7 {[%emt 0:05:23]} 33. Bc4 {[%emt 0:04:11]} Qf7 {[%emt 0:04:11]} 34. Rh1 {[%emt 0:03:22]} Reb8 {[%emt 0:03:22]} 35. Ree1 {[%emt 0:02:17]} a3 {[%emt 0:02:17]} 36. bxa3 {[%emt 0:02:12]} Rxa3 {[%emt 0:18:37]} 37. h6 {[%emt 0:01:05]} Qf8 {[%emt 0:12:00]} 38. Bxd5 {[%emt 0:00:48]} cxd5 {[%emt 0:09:32]} 39. Qc2 {[%emt 0:00:20]} Qc8 {[%emt 0:00:20]} 40. Rb1 {[%emt 0:00:05]} Rba8 {[%emt 0:00:05]} 41. Rb6 {[%emt 0:23:18]} Be8 {[%emt 0:23:53]} 42. Qe2 {[%emt 0:10:24]} Bf7 {[%emt 0:18:09]} 43. Rhb1 {[%emt 0:08:03]} Bh5 {[%emt 0:08:03]} 44. R1b3 {[%emt 0:06:40]} Bg6 {[%emt 0:03:58]} 45. Nd2 {[%emt 0:03:39]} Bf7 {[%emt 0:02:49]} 46. Qf3 {[%emt 0:03:15]} Qd8 {[%emt 0:02:35] Rb6 0:03:01 Ra2 0:02:22 Qb3 0:02:22 Ra8 0:02:21} 47. Rb7 {[%emt 0:02:27]} Rc8 {[%emt 0:02:11] Qb1 0:02:16 Qe8 0:01:58} 48. Nf1 {[%emt 0:02:07] Qc6 0:01:52 Ne3 0:01:57} Bg6 49. Rg7+ {[%emt 0:01:33]} Kh8 {[%emt 0:01:33]} 50. Rxg6 {[%emt 0:01:32]} hxg6 {[%emt 0:01:32] Qxg6 0:01:29 Qd7 0:01:29} 51. Qxf6+ {[%emt 0:01:48]} Kg8 {[%emt 0:01:27]} 52. Qxg5 {[%emt 0:01:25]} Kh8 {[%emt 0:01:25] Ng4 0:01:29 Qf7 0:01:15 Ne5 0:01:23 Qc7 0:01:01 Ng6+ 0:01:01 Kh7 Ne7} 1-0

[Event "30th NATO Chess-ch 2019"]
[Site "Berlin"]
[Date "2019.09.19"]
[Round "6.9"]
[White "Lakos, Nikoletta"]
[Black "Kersic, Matej"]
[Result "1/2-1/2"]
[ECO "B50"]
[WhiteElo "2226"]
[BlackElo "2122"]
[Annotator "NA"]
[PlyCount "73"]
[EventDate "2019.09.16"]
[EventType "swiss"]
[EventCountry "GER"]
[SourceTitle "playchess.com"]
[Source "ChessBase"]
[SourceQuality "1"]
[TimeControl "40/7200:1800"]

1. e4 {[%emt 1:59:57]} c5 {[%emt 1:59:49]} 2. b3 {[%emt 1:58:47]} d6 {[%emt 1:58:34]} 3. Bb2 {[%emt 1:58:34]} Nc6 {[%emt 1:54:45]} 4. Bb5 {[%emt 1:56:34]} Bd7 {[%emt 1:46:47]} 5. Nf3 {[%emt 1:40:15]} e6 {[%emt 1:40:15]} 6. O-O {[%emt 1:39:07]} Nf6 {[%emt 1:39:07]} 7. Re1 {[%emt 1:26:12]} Be7 {[%emt 1:54:30]} 8. c4 {[%emt 1:04:55]} O-O {[%emt 1:04:55]} 9. Nc3 {[%emt 1:03:22]} e5 {[%emt 1:03:22]} 10. Nd5 {[%emt 0:51:58]} a6 {[%emt 0:51:58]} 11. Bxc6 {[%emt 0:48:11]} bxc6 {[%emt 0:48:11]} 12. Nxe7+ {[%emt 1:36:27]} Qxe7 {[%emt 0:47:23]} 13. d3 {[%emt 0:46:00]} Bg4 {[%emt 1:30:32]} 14. h3 {[%emt 1:30:32]} Bxf3 {[%emt 0:44:54]} 15. Qxf3 {[%emt 0:44:46]} Ne8 {[%emt 1:30:14]} 16. Qe3 {[%emt 0:37:29]} Nc7 {[%emt 1:29:23]} 17. f4 {[%emt 0:36:50]} exf4 {[%emt 0:36:50]} 18. Qxf4 {[%emt 0:36:35]} Ne6 {[%emt 0:36:35]} 19. Qg3 {[%emt 0:34:24]} f6 {[%emt 1:09:43]} 20. Qf2 {[%emt 0:33:03]} Rfe8 {[%emt 0:33:03]} 21. Bc3 {[%emt 0:31:40]} Rab8 {[%emt 0:31:40]} 22. Rab1 {[%emt 0:27:29]} Rb7 {[%emt 0:27:29]} 23. Rb2 {[%emt 1:02:10]} Ng5 {[%emt 0:52:55]} 24. a3 {[%emt 0:20:49]} Reb8 {[%emt 0:50:57]} 25. b4 {[%emt 0:50:57]} Nf7 {[%emt 0:15:15]} 26. Reb1 {[%emt 0:14:22]} Ne5 {[%emt 0:43:59]} 27. Qe2 {[%emt 0:12:07]} Qe6 {[%emt 0:40:36]} 28. bxc5 {[%emt 0:04:46]} Rxb2 {[%emt 0:04:46]} 29. Rxb2 {[%emt 0:04:44]} Rxb2 {[%emt 0:39:13]} 30. Qxb2 {[%emt 0:04:35]} dxc5 {[%emt 0:38:47]} 31. Bxe5 {[%emt 0:04:04]} Qxe5 {[%emt 0:04:04]} 32. Qxe5 {[%emt 0:03:21]} fxe5 {[%emt 0:38:17]} 33. Kf2 {[%emt 0:38:17]} Kf7 {[%emt 0:38:10]} 34. Kf3 {[%emt 0:02:36]} g5 {[%emt 0:02:36]} 35. g4 {[%emt 0:01:42]} a5 {[%emt 0:36:05]} 36. a4 {[%emt 0:01:18]} h6 {[%emt 0:01:18]} 37. Kg3 {[%emt 0:35:56]} 1/2-1/2

[Event "30th NATO Chess-ch 2019"]
[Site "Berlin"]
[Date "2019.09.19"]
[Round "6.10"]
[White "Tocco, Paolo"]
[Black "Pietruszewski, Marcin"]
[Result "1-0"]
[ECO "A03"]
[WhiteElo "2089"]
[BlackElo "2215"]
[Annotator "NA"]
[PlyCount "110"]
[EventDate "2019.09.16"]
[EventType "swiss"]
[EventCountry "GER"]
[SourceTitle "playchess.com"]
[Source "ChessBase"]
[SourceQuality "1"]
[TimeControl "40/7200:1800"]

1. f4 {[%emt 2:00:00]} c5 {[%emt 1:59:42]} 2. Nf3 {[%emt 1:59:47]} d5 {[%emt 1:59:47]} 3. g3 {[%emt 1:59:40]} g6 {[%emt 1:59:00]} 4. Bg2 {[%emt 1:59:36]} Bg7 {[%emt 1:58:58]} 5. O-O {[%emt 1:59:27]} Nc6 {[%emt 1:58:50]} 6. d3 {[%emt 1:58:50]} Nf6 {[%emt 1:56:06]} 7. c3 {[%emt 1:58:37]} O-O {[%emt 1:58:37]} 8. Na3 {[%emt 1:58:31]} Rb8 {[%emt 1:46:09]} 9. Ne5 {[%emt 1:46:09]} Qb6 {[%emt 1:04:10]} 10. Nxc6 {[%emt 1:54:10]} Qxc6 {[%emt 1:04:08]} 11. Nc4 {[%emt 1:04:08]} Qa6 {[%emt 1:51:40]} 12. Ne5 {[%emt 1:00:32]} Rd8 {[%emt 1:49:54]} 13. Qc2 {[%emt 1:44:57]} Be6 {[%emt 1:44:57]} 14. e4 {[%emt 1:39:16]} dxe4 {[%emt 0:44:58]} 15. dxe4 {[%emt 1:39:07]} Ng4 {[%emt 1:39:07]} 16. Nxg4 {[%emt 1:32:35]} Bxg4 {[%emt 0:44:42]} 17. Be3 {[%emt 0:44:42]} Be2 {[%emt 0:36:16]} 18. Rfe1 {[%emt 1:30:05]} Bd3 {[%emt 1:30:05]} 19. Qf2 {[%emt 1:29:47]} b6 {[%emt 1:29:47]} 20. g4 {[%emt 1:22:57]} Rd7 {[%emt 0:34:59]} 21. e5 {[%emt 1:18:41]} Qc4 {[%emt 1:18:41]} 22. Bc6 {[%emt 1:09:29]} Rc7 {[%emt 0:27:22]} 23. Bf3 {[%emt 0:27:22]} Rd8 {[%emt 0:27:12]} 24. a3 {[%emt 1:05:50]} a5 {[%emt 0:26:21]} 25. Rad1 {[%emt 1:04:05]} Rcd7 {[%emt 0:21:59]} 26. Bc6 {[%emt 1:03:57]} Rc7 {[%emt 0:21:56]} 27. Bf3 {[%emt 1:03:51]} f6 {[%emt 0:17:11]} 28. exf6 {[%emt 0:58:55]} exf6 {[%emt 0:16:39]} 29. Rd2 {[%emt 0:56:01]} Rcd7 {[%emt 0:12:59]} 30. Red1 {[%emt 0:12:59]} Qe6 {[%emt 0:06:52]} 31. h3 {[%emt 0:48:59]} f5 {[%emt 0:05:57]} 32. g5 {[%emt 0:41:07]} a4 {[%emt 0:05:38]} 33. Kg2 {[%emt 0:05:38]} Kf7 {[%emt 0:38:08]} 34. Kg3 {[%emt 0:34:55]} Rd6 {[%emt 0:34:55]} 35. Be2 {[%emt 0:25:33]} Qe4 {[%emt 0:02:18]} 36. Qf3 {[%emt 0:02:18]} Qxf3+ {[%emt 0:01:15]} 37. Kxf3 {[%emt 0:19:31]} Bxe2+ {[%emt 0:00:56]} 38. Kxe2 {[%emt 0:19:27]} Ke6 {[%emt 0:00:35]} 39. Rxd6+ {[%emt 0:18:50]} Rxd6 {[%emt 0:00:34]} 40. Rxd6+ {[%emt 0:18:41]} Kxd6 {[%emt 0:00:33]} 41. Kd3 {[%emt 0:00:33]} b5 {[%emt 0:00:07]} 42. Bd2 {[%emt 0:17:49]} Kd5 {[%emt 0:47:49]} 43. Bc1 {[%emt 0:46:55]} Bf8 {[%emt 0:29:07]} 44. Bd2 {[%emt 0:46:03]} Bd6 {[%emt 0:29:01]} 45. Bc1 {[%emt 0:45:19]} Bc7 {[%emt 0:28:52]} 46. Bd2 {[%emt 0:28:52]} Bb6 {[%emt 0:34:18]} 47. Be3 {[%emt 0:34:05]} Ba7 {[%emt 0:34:05]} 48. c4+ {[%emt 0:28:29]} bxc4+ {[%emt 0:28:18]} 49. Kc3 {[%emt 0:28:18]} Bb6 {[%emt 0:28:11]} 50. Bf2 {[%emt 0:26:13]} Bc7 {[%emt 0:27:21]} 51. Be3 {[%emt 0:24:08]} Bd6 {[%emt 0:24:08]} 52. Bd2 {[%emt 0:27:17]} Bf8 {[%emt 0:27:14]} 53. Be3 {[%emt 0:20:23]} Bg7+ {[%emt 0:27:08]} 54. Kc2 {[%emt 0:20:14]} Bd4 {[%emt 0:20:14]} 55. Bc1 Z0 {gxc6} 1-0

[Event "30th NATO Chess-ch 2019"]
[Site "Berlin"]
[Date "2019.09.19"]
[Round "6.11"]
[White "Sycz, Dariusz"]
[Black "Keough, Robert"]
[Result "1-0"]
[ECO "E60"]
[WhiteElo "2215"]
[BlackElo "2108"]
[Annotator "NA"]
[PlyCount "123"]
[EventDate "2019.09.16"]
[EventType "swiss"]
[EventCountry "GER"]
[SourceTitle "playchess.com"]
[Source "ChessBase"]
[SourceQuality "1"]
[TimeControl "40/7200:1800"]

1. d4 {[%emt 2:00:00]} Nf6 {[%emt 1:59:55]} 2. Nf3 {[%emt 1:59:32]} g6 {[%emt 1:59:32]} 3. g3 {[%emt 1:58:13]} Bg7 {[%emt 1:58:13]} 4. Bg2 {[%emt 1:59:19]} O-O {[%emt 1:59:08]} 5. O-O {[%emt 1:59:08]} d6 {[%emt 1:57:57]} 6. c4 {[%emt 1:58:06]} c5 {[%emt 1:55:32]} 7. d5 {[%emt 1:51:18]} Bg4 {[%emt 1:41:26]} 8. Nc3 {[%emt 1:49:19]} Bxf3 {[%emt 1:41:17]} 9. Bxf3 {[%emt 1:48:42]} Nbd7 {[%emt 1:41:08]} 10. Bg2 {[%emt 1:48:16]} Ne5 {[%emt 1:48:16]} 11. b3 {[%emt 1:35:21]} Ne8 {[%emt 1:24:04]} 12. Bb2 {[%emt 1:24:04]} Nd7 {[%emt 1:42:15]} 13. Qc2 {[%emt 1:21:21]} Nc7 {[%emt 1:18:43]} 14. Rae1 {[%emt 1:32:59]} Rb8 {[%emt 1:32:59]} 15. Nd1 {[%emt 1:30:49]} b5 {[%emt 1:30:49]} 16. Bxg7 {[%emt 1:30:03]} Kxg7 {[%emt 1:30:03]} 17. Nb2 {[%emt 1:29:27]} Nb6 {[%emt 1:10:08]} 18. e4 {[%emt 1:10:08]} bxc4 {[%emt 1:23:35]} 19. bxc4 {[%emt 1:23:25]} e5 {[%emt 1:05:23]} 20. dxe6 Nxe6 {[%emt 1:17:56]} 21. e5 {[%emt 1:02:17]} Nd4 {[%emt 1:02:17]} 22. Qc1 {[%emt 1:12:11]} dxe5 {[%emt 1:12:11]} 23. Rxe5 {[%emt 1:09:51]} Nd7 {[%emt 1:09:51]} 24. Re3 {[%emt 1:05:14]} Qa5 {[%emt 0:55:39]} 25. a3 {[%emt 0:52:23]} Nb3 {[%emt 0:52:23]} 26. Qc2 {[%emt 0:37:35]} Nd4 {[%emt 0:28:14]} 27. Qa4 {[%emt 0:35:29]} Qd2 {[%emt 0:35:29]} 28. Nd3 {[%emt 0:26:07]} Nb6 {[%emt 0:26:07]} 29. Qxa7 {[%emt 0:13:58]} Ne2+ {[%emt 0:15:55]} 30. Kh1 {[%emt 0:13:11]} Nxc4 {[%emt 0:15:34]} 31. Rf3 {[%emt 0:13:02]} Nd4 {[%emt 0:07:16]} 32. Nxc5 {[%emt 0:12:37]} Qe2 {[%emt 0:12:37]} 33. Rxf7+ {[%emt 0:06:55]} Rxf7 {[%emt 0:05:36]} 34. Qxb8 {[%emt 0:06:43]} Nd2 {[%emt 0:04:02]} 35. Qb2 {[%emt 0:04:02]} Nxf1 {[%emt 0:01:46]} 36. Qxd4+ {[%emt 0:03:08]} Kh6 {[%emt 0:03:08]} 37. Qh4+ {[%emt 0:01:00]} Kg7 {[%emt 0:02:37]} 38. Qd4+ {[%emt 0:02:07]} Kh6 {[%emt 0:00:55]} 39. Kg1 {[%emt 0:00:43]} Nd2 {[%emt 0:00:43]} 40. Qh4+ Kg7 {[%emt 0:00:35]} 41. Ne6+ {[%emt 0:30:35]} Qxe6 {[%emt 0:29:13]} 42. Qd4+ {[%emt 0:29:13]} Qf6 {[%emt 0:28:28]} 43. Qxd2 {[%emt 0:15:51]} Qa1+ {[%emt 0:15:51]} 44. Bf1 {[%emt 0:15:44]} Qxa3 {[%emt 0:15:44]} 45. Bc4 {[%emt 0:14:54]} Qa1+ {[%emt 0:14:54]} 46. Kg2 {[%emt 0:14:17]} Re7 {[%emt 0:14:17]} 47. Qd8 {[%emt 0:25:52]} Qf6 {[%emt 0:08:43]} 48. Qg8+ {[%emt 0:08:08]} Kh6 {[%emt 0:19:33]} 49. Bd5 {[%emt 0:07:30]} Re2 {[%emt 0:07:30]} 50. Bf3 {[%emt 0:07:04]} Rb2 {[%emt 0:14:17]} 51. h4 {[%emt 0:06:45]} Qg7 {[%emt 0:08:04]} 52. Qd8 {[%emt 0:08:04]} Qf7 {[%emt 0:04:44]} 53. Qd4 {[%emt 0:03:37]} Rb5 {[%emt 0:03:37]} 54. g4 {[%emt 0:03:22]} g5 {[%emt 0:01:40]} 55. h5 {[%emt 0:01:40]} Qe6 {[%emt 0:02:47]} 56. Qd8 {[%emt 0:01:06]} Kg7 {[%emt 0:01:01]} 57. Qc7+ {[%emt 0:01:01]} Kh8 {[%emt 0:01:44]} 58. h6 {[%emt 0:01:06]} Qxh6 {[%emt 0:00:10]} 59. Qd8+ {[%emt 0:00:10]} Kg7 {[%emt 0:00:07]} 60. Qd7+ {[%emt 0:00:54]} Kf8 {[%emt 0:00:04]} 61. Qxb5 {[%emt 0:00:52]} Qf6 62. Qb8+ {[%emt 0:00:00]} 1-0

[Event "30th NATO Chess-ch 2019"]
[Site "Berlin"]
[Date "2019.09.19"]
[Round "6.12"]
[White "Mouroutis, Konstantinos"]
[Black "Cichy, Kamil"]
[Result "0-1"]
[ECO "D00"]
[WhiteElo "2181"]
[BlackElo "2106"]
[Annotator "NA"]
[PlyCount "84"]
[EventDate "2019.09.16"]
[EventType "swiss"]
[EventCountry "GER"]
[SourceTitle "playchess.com"]
[Source "ChessBase"]
[SourceQuality "1"]
[TimeControl "40/7200:1800"]

1. d4 {[%emt 1:59:56]} d5 {[%emt 1:59:56]} 2. Bg5 {[%emt 1:57:16]} h6 {[%emt 1:56:16]} 3. Bh4 {[%emt 1:57:09]} c5 {[%emt 1:51:44]} 4. dxc5 {[%emt 1:54:41]} Qa5+ {[%emt 1:37:41]} 5. Nc3 {[%emt 1:37:41]} e6 {[%emt 1:44:21]} 6. e4 {[%emt 1:25:14]} g5 {[%emt 0:57:43]} 7. Qd4 {[%emt 1:32:48]} Rh7 {[%emt 0:56:09]} 8. b4 {[%emt 1:31:48]} Nc6 {[%emt 0:52:14]} 9. Bb5 {[%emt 0:52:14]} Qxb5 {[%emt 0:48:48]} 10. Nxb5 {[%emt 0:48:48]} Nxd4 {[%emt 0:48:36]} 11. Nc7+ {[%emt 0:48:36]} Kd8 {[%emt 0:35:23]} 12. Nxa8 {[%emt 1:11:00]} Nxc2+ {[%emt 0:34:14]} 13. Kd2 {[%emt 0:34:14]} Nxa1 {[%emt 1:10:38]} 14. Bg3 {[%emt 1:10:22]} dxe4 {[%emt 0:22:05]} 15. Bc7+ {[%emt 0:56:23]} Kd7 {[%emt 0:21:02]} 16. Ne2 {[%emt 0:21:02]} Bg7 {[%emt 0:19:22]} 17. Nc3 {[%emt 0:55:37]} Ne7 {[%emt 0:18:31]} 18. Nxe4 {[%emt 0:44:19]} Nd5 {[%emt 0:17:32]} 19. Bd6 {[%emt 0:17:32]} f5 {[%emt 0:44:16]} 20. Ng3 {[%emt 0:42:36]} b5 {[%emt 0:15:30]} 21. Nh5 {[%emt 0:33:45]} Bh8 {[%emt 0:14:48]} 22. f4 {[%emt 0:14:48]} Bb7 {[%emt 0:12:25]} 23. Be5 {[%emt 0:31:47]} Bxa8 {[%emt 0:11:33]} 24. Rxa1 {[%emt 0:30:21]} gxf4 {[%emt 0:30:21]} 25. Bxh8 {[%emt 0:09:32]} Rxh8 {[%emt 0:09:32]} 26. a4 {[%emt 0:27:46]} a6 {[%emt 0:07:08]} 27. axb5 {[%emt 0:27:18]} axb5 {[%emt 0:07:02]} 28. Ra7+ {[%emt 0:27:02]} Nc7 {[%emt 0:06:51]} 29. Nxf4 {[%emt 0:06:51]} e5 {[%emt 0:05:59]} 30. Ng6 {[%emt 0:24:03]} Re8 {[%emt 0:05:34]} 31. g3 {[%emt 0:05:34]} Bd5 {[%emt 0:04:42]} 32. Ke3 {[%emt 0:22:52]} Kc6 {[%emt 0:04:06]} 33. Kf2 {[%emt 0:04:06]} Bf7 {[%emt 0:03:15]} 34. Nh4 {[%emt 0:21:05]} Be6 {[%emt 0:02:51]} 35. Ng6 {[%emt 0:19:03]} Bc4 {[%emt 0:02:45]} 36. Nh4 {[%emt 0:18:46]} Bd3 {[%emt 0:02:14]} 37. Nf3 {[%emt 0:17:31]} Be4 {[%emt 0:01:59]} 38. Nd2 {[%emt 0:01:59]} Bd5 {[%emt 0:01:49]} 39. g4 {[%emt 0:14:12]} fxg4 {[%emt 0:01:30]} 40. Kg3 {[%emt 0:14:09]} h5 {[%emt 0:01:18]} 41. Kh4 {[%emt 0:01:18]} e4 {[%emt 0:00:46]} 42. Ra1 {[%emt 0:13:03]} e3 {[%emt 0:00:23]} 0-1